[Event "Balkan Youth Online-ch 2020"]
[Site "Online"]
[Date "2020.10.31"]
[Round "3.54"]
[White "Siskou, Evangelia"]
[Black "Ciocirlan, Bianca-Alexandra"]
[Result "0-1"]
[ECO "C78"]
[WhiteElo "1339"]
[BlackElo "1038"]
[Annotator "NA RC"]
[PlyCount "118"]
[EventDate "2020.10.31"]
[EventType "swiss"]
[SourceTitle "playchess.com"]
[Source "ChessBase"]
[SourceQuality "1"]
[TimeControl "5400+30"]

1. e4 {[%emt 1:05:20]} e5 {[%emt 1:05:23]} 2. Nf3 {[%emt 0:00:27]} Nc6 {[%emt 0:00:23]} 3. Bb5 {[%emt 0:00:23]} a6 {[%emt 0:00:23]} 4. Ba4 {[%emt 0:00:24]} Nf6 {[%emt 0:00:28]} 5. O-O {[%emt 0:00:30]} b5 {[%emt 0:00:30]} 6. Bb3 {[%emt 0:00:26]} Bc5 {[%emt 0:00:33]} 7. c3 {[%emt 0:00:40]} O-O {[%emt 0:00:45]} 8. Re1 {[%emt 0:00:42]} d6 {[%emt 0:00:42]} 9. d4 {[%emt 0:00:31]} exd4 {[%emt 0:00:45]} 10. cxd4 {[%emt 0:00:28]} Bb6 {[%emt 0:00:43]} 11. h3 {[%emt 0:00:29]} h6 {[%emt 0:00:53]} 12. Bf4 {[%emt 0:00:40]} Re8 {[%emt 0:00:43]} 13. e5 {[%emt 0:02:35]} dxe5 {[%emt 0:00:45]} 14. Bxe5 {[%emt 0:01:12]} Nxe5 {[%emt 0:00:50]} 15. Nxe5 {[%emt 0:00:32]} Bxd4 {[%emt 0:01:18]} 16. Bxf7+ {[%emt 0:01:04]} Kf8 {[%emt 0:01:15]} 17. Bxe8 {[%emt 0:00:33]} Nxe8 {[%emt 0:01:04]} 18. Qf3+ {[%emt 0:00:36]} Qf6 {[%emt 0:00:53]} 19. Qxf6+ {[%emt 0:09:38]} gxf6 {[%emt 0:00:48]} 20. Nf3 {[%emt 0:00:48]} Bxb2 {[%emt 0:00:27]} 21. Nbd2 {[%emt 0:00:30]} Bxa1 {[%emt 0:00:44]} 22. Rxa1 {[%emt 0:00:28]} Bb7 {[%emt 0:01:02]} 23. Re1 {[%emt 0:00:35]} Bd5 {[%emt 0:00:57]} 24. a3 {[%emt 0:00:32]} c5 {[%emt 0:00:45]} 25. Nb1 {[%emt 0:00:53]} Bxf3 {[%emt 0:00:36]} 26. gxf3 {[%emt 0:00:26]} c4 {[%emt 0:01:28]} 27. Nc3 {[%emt 0:00:24]} Rd8 {[%emt 0:00:39]} 28. Rd1 {[%emt 0:02:32]} Rxd1+ {[%emt 0:00:56]} 29. Nxd1 {[%emt 0:01:40]} Ke7 {[%emt 0:00:32]} 30. Kf1 {[%emt 0:00:23]} Ke6 {[%emt 0:00:28]} 31. Ke2 {[%emt 0:00:25]} Ke5 {[%emt 0:00:32]} 32. Ke3 {[%emt 0:00:43]} Nd6 {[%emt 0:00:44]} 33. Nc3 {[%emt 0:00:34]} Nf5+ {[%emt 0:00:25]} 34. Kd2 {[%emt 0:00:46]} Nd4 {[%emt 0:00:56]} 35. Ne4 {[%emt 0:01:34]} Nxf3+ {[%emt 0:00:28]} 36. Ke3 {[%emt 0:00:24]} f5 {[%emt 0:00:45]} 37. Nc5 {[%emt 0:01:19]} Ng1 {[%emt 0:01:25]} 38. Nxa6 {[%emt 0:00:57]} f4+ {[%emt 0:00:39]} 39. Kd2 {[%emt 0:00:28]} Nxh3 {[%emt 0:00:25]} 40. Ke2 {[%emt 0:00:55]} Ng5 {[%emt 0:01:20]} 41. Nc7 {[%emt 0:00:29]} f3+ {[%emt 0:00:40]} 42. Ke3 {[%emt 0:00:28]} h5 {[%emt 0:00:28]} 43. Nxb5 {[%emt 0:00:52]} h4 {[%emt 0:00:28]} 44. Nd4 {[%emt 0:00:23]} h3 {[%emt 0:00:33]} 45. Nxf3+ {[%emt 0:00:23]} Nxf3 {[%emt 0:00:27]} 46. Kxf3 {[%emt 0:00:23]} c3 {[%emt 0:00:22]} 47. Ke3 {[%emt 0:00:29]} h2 {[%emt 0:00:25]} 48. f4+ {[%emt 0:00:22]} Kf5 {[%emt 0:00:25]} 49. Kd3 {[%emt 0:00:23]} h1=Q {[%emt 0:00:23]} 50. Kxc3 {[%emt 0:00:22]} Qb1 {[%emt 0:00:30]} 51. a4 {[%emt 0:00:27]} Kxf4 {[%emt 0:00:25]} 52. a5 {[%emt 0:00:25]} Qb5 {[%emt 0:00:25]} 53. a6 {[%emt 0:00:26]} Qxa6 {[%emt 0:00:23]} 54. Kb4 {[%emt 0:00:22]} Qc6 {[%emt 0:00:22]} 55. Kb3 {[%emt 0:00:23]} Ke3 {[%emt 0:00:22]} 56. Kb4 {[%emt 0:00:23]} Kd3 {[%emt 0:00:23]} 57. Kb3 {[%emt 0:00:22]} Qb5+ {[%emt 0:00:21]} 58. Ka2 {[%emt 0:00:25]} Kc2 {[%emt 0:00:23]} 59. Ka3 {[%emt 0:00:23]} Qb3# {[%emt 0:00:22]} 0-1

[Event "Balkan Youth Online-ch 2020"]
[Site "Online"]
[Date "2020.10.31"]
[Round "3.56"]
[White "Bagas, Ana"]
[Black "Caku, Kler"]
[Result "1-0"]
[ECO "C54"]
[WhiteElo "1589"]
[BlackElo "1199"]
[Annotator "NA RC"]
[PlyCount "55"]
[EventDate "2020.10.31"]
[EventType "swiss"]
[SourceTitle "playchess.com"]
[Source "ChessBase"]
[SourceQuality "1"]
[TimeControl "5400+30"]

1. e4 {[%emt 1:05:20]} e5 {[%emt 1:05:25]} 2. Nf3 {[%emt 0:00:24]} Nc6 {[%emt 0:00:22]} 3. Bc4 {[%emt 0:00:23]} Bc5 {[%emt 0:00:22]} 4. d3 {[%emt 0:00:23]} h6 {[%emt 0:00:27]} 5. c3 {[%emt 0:00:25]} Nf6 {[%emt 0:00:24]} 6. Nbd2 {[%emt 0:00:34]} O-O {[%emt 0:00:28]} 7. O-O {[%emt 0:00:35]} d6 {[%emt 0:00:24]} 8. Re1 {[%emt 0:00:42]} Be6 {[%emt 0:01:21]} 9. Bb5 {[%emt 0:00:30]} a6 {[%emt 0:01:08]} 10. Ba4 {[%emt 0:00:29]} Qe7 {[%emt 0:01:08]} 11. Nf1 {[%emt 0:00:35]} b5 {[%emt 0:01:03]} 12. Bc2 {[%emt 0:00:23]} b4 {[%emt 0:01:12]} 13. d4 {[%emt 0:01:04]} exd4 {[%emt 0:02:11]} 14. cxd4 {[%emt 0:00:24]} b3 {[%emt 0:01:07]} 15. axb3 {[%emt 0:00:38]} Bb4 {[%emt 0:00:28]} 16. Bd2 {[%emt 0:00:54]} Bxd2 {[%emt 0:00:42]} 17. Qxd2 {[%emt 0:00:25]} Bd7 {[%emt 0:00:55]} 18. Ng3 {[%emt 0:01:03]} Rfe8 {[%emt 0:01:16]} 19. e5 {[%emt 0:02:00]} dxe5 {[%emt 0:00:58]} 20. dxe5 {[%emt 0:00:31]} Ng4 {[%emt 0:01:43]} 21. Qd3 {[%emt 0:00:36]} g6 {[%emt 0:00:40]} 22. Rad1 {[%emt 0:02:38]} Rad8 {[%emt 0:02:19]} 23. Qc4 {[%emt 0:02:54]} Kg7 {[%emt 0:01:20]} 24. e6 {[%emt 0:01:12]} Bxe6 {[%emt 0:04:26]} 25. Qxc6 {[%emt 0:00:29]} Rb8 {[%emt 0:02:25]} 26. Qc3+ {[%emt 0:06:13]} Kg8 {[%emt 0:00:42]} 27. Ne5 {[%emt 0:01:00]} Nf6 {[%emt 0:01:22]} 28. Nc6 {[%emt 0:00:51]} 1-0

[Event "Balkan Youth Online-ch 2020"]
[Site "Online"]
[Date "2020.10.31"]
[Round "3.61"]
[White "Kontogianni, Vasiliki"]
[Black "Aldea, Maria-Antonia"]
[Result "1-0"]
[ECO "E46"]
[WhiteElo "1144"]
[BlackElo "1181"]
[Annotator "NA RC"]
[PlyCount "93"]
[EventDate "2020.10.31"]
[EventType "swiss"]
[SourceTitle "playchess.com"]
[Source "ChessBase"]
[SourceQuality "1"]
[TimeControl "1500+5"]

1. d4 {[%emt 0:00:00]} Nf6 {[%emt 0:00:00]} 2. c4 {[%emt 0:00:00]} e6 {[%emt 0:00:00]} 3. Nc3 {[%emt 0:00:00]} Bb4 {[%emt 0:00:00]} 4. e3 {[%emt 0:00:00]} O-O {[%emt 0:00:22]} 5. Bd2 {[%emt 0:00:00]} c5 {[%emt 0:01:07]} 6. a3 {[%emt 0:00:32]} Bxc3 {[%emt 0:00:28]} 7. Bxc3 {[%emt 0:00:00]} d6 {[%emt 0:02:23]} 8. Bd3 {[%emt 0:00:22]} Nbd7 {[%emt 0:00:12]} 9. Qc2 {[%emt 0:00:00]} h6 {[%emt 0:01:06]} 10. O-O-O {[%emt 0:00:12]} Qc7 {[%emt 0:00:36]} 11. h3 {[%emt 0:00:31]} b6 {[%emt 0:00:15]} 12. g4 {[%emt 0:00:23]} Bb7 {[%emt 0:00:00]} 13. f3 {[%emt 0:00:00]} cxd4 {[%emt 0:02:07]} 14. exd4 {[%emt 0:00:58]} d5 {[%emt 0:00:04]} 15. Bb4 {[%emt 0:01:18]} Rfc8 {[%emt 0:00:13]} 16. b3 {[%emt 0:01:50]} a5 {[%emt 0:01:42]} 17. Be7 {[%emt 0:01:56]} Re8 {[%emt 0:01:16]} 18. Bxf6 {[%emt 0:00:03]} Nxf6 {[%emt 0:00:00]} 19. Kb2 {[%emt 0:01:16]} Rec8 {[%emt 0:00:51]} 20. h4 {[%emt 0:00:08]} Nd7 {[%emt 0:02:35]} 21. g5 {[%emt 0:00:11]} h5 {[%emt 0:00:01]} 22. g6 {[%emt 0:00:54]} f6 {[%emt 0:00:33]} 23. Re1 {[%emt 0:00:38]} Re8 {[%emt 0:00:45]} 24. Qe2 {[%emt 0:00:16]} e5 {[%emt 0:00:33]} 25. Qh2 {[%emt 0:00:50]} Rac8 {[%emt 0:00:27]} 26. Qh3 {[%emt 0:02:10]} exd4 {[%emt 0:01:37]} 27. Ne2 {[%emt 0:00:56]} Ne5 {[%emt 0:00:24]} 28. Bf5 {[%emt 0:00:39]} Rcd8 {[%emt 0:00:51]} 29. Nxd4 {[%emt 0:00:06]} Bc8 {[%emt 0:00:22]} 30. Re3 {[%emt 0:01:08]} Nxc4+ {[%emt 0:01:29]} 31. bxc4 {[%emt 0:00:02]} Rxe3 {[%emt 0:00:00]} 32. Be6+ {[%emt 0:00:26]} Kf8 {[%emt 0:00:38]} 33. Qf5 {[%emt 0:02:33]} Re5 {[%emt 0:00:07]} 34. Qh3 {[%emt 0:00:17]} dxc4 {[%emt 0:00:48]} 35. Rd1 {[%emt 0:00:25]} c3+ {[%emt 0:00:17]} 36. Kc2 {[%emt 0:00:13]} Re8 {[%emt 0:00:27]} 37. Bxc8 {[%emt 0:00:38]} Qxc8 {[%emt 0:00:03]} 38. Qxc8 {[%emt 0:00:14]} Rxc8 {[%emt 0:00:02]} 39. f4 {[%emt 0:00:00]} Re4 {[%emt 0:00:08]} 40. f5 {[%emt 0:00:18]} Ke7 {[%emt 0:01:27]} 41. Ne6 {[%emt 0:00:55]} Rg8 {[%emt 0:00:14]} 42. Kxc3 {[%emt 0:00:15]} Re5 {[%emt 0:00:15]} 43. Nd4 {[%emt 0:00:09]} Rc8+ {[%emt 0:00:19]} 44. Kb2 {[%emt 0:00:02]} Rg8 {[%emt 0:00:49]} 45. Nc6+ {[%emt 0:00:01]} Kf8 {[%emt 0:00:30]} 46. Nxe5 {[%emt 0:00:28]} Ke7 {[%emt 0:00:01]} 47. Nc6+ {[%emt 0:00:00]} 1-0

[Event "Balkan Youth Online-ch 2020"]
[Site "Online"]
[Date "2020.10.31"]
[Round "3.63"]
[White "Gkoutzouki, Aikaterini Argyro"]
[Black "Tirpan, Ceren"]
[Result "0-1"]
[ECO "E01"]
[WhiteElo "1380"]
[BlackElo "1379"]
[Annotator "NA RC"]
[PlyCount "158"]
[EventDate "2020.10.31"]
[EventType "swiss"]
[SourceTitle "playchess.com"]
[Source "ChessBase"]
[SourceQuality "1"]
[TimeControl "1500+5"]

1. d4 {[%emt 0:00:00]} d5 {[%emt 0:00:00]} 2. Nf3 {[%emt 0:00:00]} Nf6 {[%emt 0:00:00]} 3. g3 {[%emt 0:00:00]} e6 {[%emt 0:00:00]} 4. Bg2 {[%emt 0:00:00]} Bd6 {[%emt 0:00:00]} 5. O-O {[%emt 0:00:00]} O-O {[%emt 0:00:00]} 6. c4 {[%emt 0:00:00]} c6 {[%emt 0:00:00]} 7. Qc2 {[%emt 0:00:00]} Nbd7 {[%emt 0:00:00]} 8. b3 {[%emt 0:00:00]} b6 {[%emt 0:00:00]} 9. Nbd2 {[%emt 0:00:00]} Bb7 {[%emt 0:00:00]} 10. Bb2 {[%emt 0:00:00]} Rc8 {[%emt 0:00:00]} 11. Rac1 {[%emt 0:00:00]} c5 {[%emt 0:00:08]} 12. Qb1 {[%emt 0:00:00]} Qe7 {[%emt 0:00:22]} 13. Rfe1 {[%emt 0:00:17]} Rfe8 {[%emt 0:00:25]} 14. e3 {[%emt 0:00:23]} dxc4 {[%emt 0:00:23]} 15. Nxc4 {[%emt 0:00:12]} cxd4 {[%emt 0:00:06]} 16. Nxd4 {[%emt 0:00:58]} Bxg2 {[%emt 0:00:05]} 17. Kxg2 {[%emt 0:00:03]} Bb8 {[%emt 0:00:37]} 18. Ba3 {[%emt 0:00:36]} Nc5 {[%emt 0:00:45]} 19. Kg1 {[%emt 0:00:40]} Qb7 {[%emt 0:00:21]} 20. Bxc5 {[%emt 0:04:52]} Rxc5 {[%emt 0:00:27]} 21. Nd2 {[%emt 0:03:52]} Rec8 {[%emt 0:01:12]} 22. b4 {[%emt 0:02:23]} Rxc1 {[%emt 0:00:46]} 23. Rxc1 {[%emt 0:00:00]} Nd5 {[%emt 0:00:14]} 24. Nc4 {[%emt 0:05:36]} a6 {[%emt 0:04:08]} 25. a3 {[%emt 0:01:36]} Rc7 {[%emt 0:02:20]} 26. Ne2 {[%emt 0:01:08]} Qc8 {[%emt 0:00:47]} 27. e4 {[%emt 0:00:20]} Rxc4 {[%emt 0:00:12]} 28. exd5 {[%emt 0:00:13]} exd5 {[%emt 0:00:02]} 29. Rd1 {[%emt 0:00:05]} Qe6 {[%emt 0:00:49]} 30. Qd3 {[%emt 0:00:42]} Rc8 {[%emt 0:01:37]} 31. Qxa6 {[%emt 0:00:24]} Re8 {[%emt 0:00:49]} 32. Nd4 {[%emt 0:00:11]} Qg4 {[%emt 0:00:21]} 33. Qd3 {[%emt 0:00:03]} Be5 {[%emt 0:01:53]} 34. Nc6 {[%emt 0:00:12]} d4 {[%emt 0:01:28]} 35. Nxe5 {[%emt 0:00:30]} Rxe5 {[%emt 0:00:56]} 36. Qc2 {[%emt 0:02:20]} h6 {[%emt 0:00:36]} 37. Kg2 {[%emt 0:00:12]} Re2 {[%emt 0:00:43]} 38. Qd3 {[%emt 0:00:00]} Qe4+ {[%emt 0:00:08]} 39. Qxe4 {[%emt 0:00:00]} Rxe4 {[%emt 0:00:00]} 40. Kf3 {[%emt 0:00:00]} f5 {[%emt 0:00:00]} 41. Rd3 {[%emt 0:00:00]} Kf7 {[%emt 0:00:00]} 42. Kg2 {[%emt 0:00:00]} Ke6 {[%emt 0:00:13]} 43. Kf1 {[%emt 0:00:02]} Kd5 {[%emt 0:00:00]} 44. Rf3 {[%emt 0:00:01]} g6 {[%emt 0:00:00]} 45. a4 {[%emt 0:00:00]} Re8 {[%emt 0:00:31]} 46. a5 {[%emt 0:00:11]} bxa5 {[%emt 0:00:00]} 47. bxa5 {[%emt 0:00:00]} Ra8 {[%emt 0:00:00]} 48. Ra3 {[%emt 0:00:00]} Kc4 {[%emt 0:00:00]} 49. Ke2 {[%emt 0:00:00]} Ra6 {[%emt 0:00:11]} 50. Ra4+ {[%emt 0:00:01]} Kc3 {[%emt 0:00:13]} 51. Ra3+ {[%emt 0:00:00]} Kb4 {[%emt 0:00:06]} 52. Ra1 {[%emt 0:00:09]} Kc4 {[%emt 0:00:19]} 53. Kd2 {[%emt 0:00:09]} g5 {[%emt 0:00:13]} 54. Ra4+ {[%emt 0:00:00]} Kd5 {[%emt 0:01:35]} 55. Kd3 {[%emt 0:00:02]} Ke5 {[%emt 0:01:07]} 56. f3 {[%emt 0:00:00]} f4 {[%emt 0:00:29]} 57. g4 {[%emt 0:00:00]} h5 {[%emt 0:00:27]} 58. gxh5 {[%emt 0:00:15]} g4 {[%emt 0:00:00]} 59. fxg4 {[%emt 0:00:00]} f3 {[%emt 0:00:00]} 60. Ra2 {[%emt 0:00:12]} Rf6 {[%emt 0:00:06]} 61. g5 {[%emt 0:00:02]} f2 {[%emt 0:00:03]} 62. gxf6 {[%emt 0:00:00]} f1=Q+ {[%emt 0:00:00]} 63. Re2+ {[%emt 0:00:00]} Kxf6 {[%emt 0:00:00]} 64. a6 {[%emt 0:00:00]} Qf3+ {[%emt 0:00:00]} 65. Kd2 {[%emt 0:00:00]} Qc3+ {[%emt 0:00:00]} 66. Kd1 {[%emt 0:00:00]} Qa1+ {[%emt 0:00:00]} 67. Kd2 {[%emt 0:00:00]} Qxa6 {[%emt 0:00:00]} 68. Rf2+ {[%emt 0:00:00]} Kg5 {[%emt 0:00:00]} 69. Re2 {[%emt 0:00:00]} Kxh5 {[%emt 0:00:00]} 70. Re4 {[%emt 0:00:00]} Qa2+ {[%emt 0:00:00]} 71. Kd3 {[%emt 0:00:00]} Qxh2 {[%emt 0:00:00]} 72. Kxd4 {[%emt 0:00:00]} Qd6+ {[%emt 0:00:00]} 73. Ke3 {[%emt 0:00:00]} Kg5 {[%emt 0:00:00]} 74. Kf3 {[%emt 0:00:00]} Qd3+ {[%emt 0:00:00]} 75. Re3 {[%emt 0:00:00]} Qf1+ {[%emt 0:00:00]} 76. Ke4 {[%emt 0:00:00]} Kg4 {[%emt 0:00:00]} 77. Kd4 {[%emt 0:00:00]} Qf6+ {[%emt 0:00:00]} 78. Re5 {[%emt 0:00:00]} Kf4 {[%emt 0:00:00]} 79. Kd5 {[%emt 0:00:00]} Qxe5+ {[%emt 0:00:00]} 0-1

[Event "Balkan Youth Online-ch 2020"]
[Site "Online"]
[Date "2020.10.31"]
[Round "3.64"]
[White "Christodoulou, Georgia"]
[Black "Pirvan, Maria"]
[Result "0-1"]
[ECO "B22"]
[WhiteElo "1373"]
[BlackElo "1484"]
[Annotator "NA RC"]
[PlyCount "64"]
[EventDate "2020.10.31"]
[EventType "swiss"]
[SourceTitle "playchess.com"]
[Source "ChessBase"]
[SourceQuality "1"]
[TimeControl "5400+30"]

1. e4 {[%emt 1:05:20]} c5 {[%emt 1:05:24]} 2. Nf3 {[%emt 0:00:23]} Nc6 {[%emt 0:00:24]} 3. c3 {[%emt 0:00:28]} d5 {[%emt 0:00:23]} 4. exd5 {[%emt 0:00:34]} Qxd5 {[%emt 0:00:22]} 5. d4 {[%emt 0:00:22]} cxd4 {[%emt 0:01:19]} 6. cxd4 {[%emt 0:00:32]} g6 {[%emt 0:00:28]} 7. Nc3 {[%emt 0:00:24]} Qd8 {[%emt 0:00:26]} 8. Bb5 {[%emt 0:01:07]} a6 {[%emt 0:06:22]} 9. Ba4 {[%emt 0:01:08]} b5 {[%emt 0:02:34]} 10. Bb3 {[%emt 0:00:37]} Bg7 {[%emt 0:00:40]} 11. Be3 {[%emt 0:02:32]} Nf6 {[%emt 0:01:18]} 12. Rc1 {[%emt 0:01:17]} Bb7 {[%emt 0:01:18]} 13. O-O {[%emt 0:00:50]} O-O {[%emt 0:00:26]} 14. Qd2 {[%emt 0:01:18]} Na5 {[%emt 0:01:39]} 15. Bd1 {[%emt 0:01:57]} Nc4 {[%emt 0:02:18]} 16. Qc2 {[%emt 0:00:44]} Nxe3 {[%emt 0:04:10]} 17. fxe3 {[%emt 0:00:31]} Bh6 {[%emt 0:00:41]} 18. Qd3 {[%emt 0:00:54]} Ng4 {[%emt 0:01:25]} 19. Re1 {[%emt 0:00:47]} Qd6 {[%emt 0:01:34]} 20. Ne4 {[%emt 0:02:09]} Bxe4 {[%emt 0:00:48]} 21. Qxe4 {[%emt 0:00:29]} f5 {[%emt 0:01:25]} 22. Bb3+ {[%emt 0:00:43]} Kh8 {[%emt 0:00:24]} 23. Qd3 {[%emt 0:01:46]} e5 {[%emt 0:01:23]} 24. d5 {[%emt 0:03:11]} e4 {[%emt 0:00:40]} 25. Qc3+ {[%emt 0:00:32]} Bg7 {[%emt 0:00:24]} 26. Qd2 {[%emt 0:02:12]} exf3 {[%emt 0:00:29]} 27. gxf3 {[%emt 0:00:22]} Ne5 {[%emt 0:00:30]} 28. Kg2 {[%emt 0:00:51]} Rac8 {[%emt 0:01:14]} 29. e4 {[%emt 0:01:30]} fxe4 {[%emt 0:00:37]} 30. fxe4 {[%emt 0:00:31]} Nf3 {[%emt 0:00:45]} 31. Qe2 {[%emt 0:00:59]} Qxh2+ {[%emt 0:00:26]} 32. Kf1 {[%emt 0:00:34]} Nd2# {[%emt 0:00:24]} 0-1

[Event "Balkan Youth Online-ch 2020"]
[Site "Online"]
[Date "2020.10.31"]
[Round "3.65"]
[White "Stankovic, Andrea"]
[Black "Criveanu, Maria"]
[Result "0-1"]
[ECO "D60"]
[WhiteElo "1534"]
[BlackElo "1054"]
[Annotator "NA RC"]
[PlyCount "78"]
[EventDate "2020.10.31"]
[EventType "swiss"]
[SourceTitle "playchess.com"]
[Source "ChessBase"]
[SourceQuality "1"]
[TimeControl "1500+5"]

1. d4 {[%emt 0:00:00]} d5 {[%emt 0:00:00]} 2. c4 {[%emt 0:00:00]} e6 {[%emt 0:00:00]} 3. Nc3 {[%emt 0:00:00]} Be7 {[%emt 0:00:00]} 4. Nf3 {[%emt 0:00:00]} Nf6 {[%emt 0:00:00]} 5. Bg5 {[%emt 0:00:00]} O-O {[%emt 0:00:00]} 6. e3 {[%emt 0:00:00]} Nbd7 {[%emt 0:00:00]} 7. Bd3 {[%emt 0:00:14]} dxc4 {[%emt 0:00:00]} 8. Bxc4 {[%emt 0:00:00]} a6 {[%emt 0:00:00]} 9. a4 {[%emt 0:00:00]} b6 {[%emt 0:00:55]} 10. O-O {[%emt 0:00:00]} Bb7 {[%emt 0:00:27]} 11. Bd3 {[%emt 0:00:37]} c5 {[%emt 0:00:18]} 12. Rc1 {[%emt 0:02:34]} Rc8 {[%emt 0:00:49]} 13. Qe2 {[%emt 0:00:18]} cxd4 {[%emt 0:00:48]} 14. exd4 {[%emt 0:00:28]} Ra8 {[%emt 0:00:38]} 15. Rc2 {[%emt 0:01:46]} Nb8 {[%emt 0:00:28]} 16. Rd1 {[%emt 0:01:12]} Nc6 {[%emt 0:00:47]} 17. Ne5 {[%emt 0:03:39]} Nxd4 {[%emt 0:01:56]} 18. Qf1 {[%emt 0:02:32]} Qb8 {[%emt 0:04:22]} 19. Bxf6 {[%emt 0:00:59]} Bxf6 {[%emt 0:00:19]} 20. Nd7 {[%emt 0:00:17]} Qc7 {[%emt 0:00:36]} 21. Nxf8 {[%emt 0:00:07]} Nxc2 {[%emt 0:00:00]} 22. Nxe6 {[%emt 0:04:49]} fxe6 {[%emt 0:00:12]} 23. Bxc2 {[%emt 0:00:59]} Bxc3 {[%emt 0:00:34]} 24. bxc3 {[%emt 0:00:15]} Qxc3 {[%emt 0:00:02]} 25. Qe2 {[%emt 0:00:16]} Bd5 {[%emt 0:00:31]} 26. Rb1 {[%emt 0:00:21]} Rc8 {[%emt 0:00:23]} 27. Bd3 {[%emt 0:05:07]} Qc1+ {[%emt 0:01:43]} 28. Rxc1 {[%emt 0:00:00]} Rxc1+ {[%emt 0:00:00]} 29. Qf1 {[%emt 0:00:00]} Rxf1+ {[%emt 0:00:00]} 30. Kxf1 {[%emt 0:00:00]} a5 {[%emt 0:00:21]} 31. f3 {[%emt 0:00:00]} h6 {[%emt 0:00:23]} 32. Ke2 {[%emt 0:00:01]} Kf7 {[%emt 0:00:00]} 33. Ke3 {[%emt 0:00:00]} e5 {[%emt 0:00:12]} 34. Bb5 {[%emt 0:00:40]} g5 {[%emt 0:00:14]} 35. g3 {[%emt 0:00:01]} Ke6 {[%emt 0:00:00]} 36. f4 {[%emt 0:00:25]} gxf4+ {[%emt 0:00:23]} 37. gxf4 {[%emt 0:00:02]} e4 {[%emt 0:01:44]} 38. Kd4 {[%emt 0:00:01]} Bb7 {[%emt 0:00:02]} 39. Bf1 {[%emt 0:00:20]} Bc6 {[%emt 0:00:09]} 0-1

[Event "Balkan Youth Online-ch 2020"]
[Site "Online"]
[Date "2020.10.31"]
[Round "3.67"]
[White "Rasheva, Nora"]
[Black "Karadas, Hena"]
[Result "0-1"]
[ECO "A60"]
[WhiteElo "1588"]
[BlackElo "1191"]
[Annotator "NA RC"]
[PlyCount "128"]
[EventDate "2020.10.31"]
[EventType "swiss"]
[SourceTitle "playchess.com"]
[Source "ChessBase"]
[SourceQuality "1"]
[TimeControl "1500+5"]

1. d4 {[%emt 0:00:00]} Nf6 {[%emt 0:00:13]} 2. Nf3 {[%emt 0:00:00]} e6 {[%emt 0:00:01]} 3. c4 {[%emt 0:00:00]} c5 {[%emt 0:00:00]} 4. d5 {[%emt 0:00:02]} exd5 {[%emt 0:00:10]} 5. cxd5 {[%emt 0:00:00]} d6 {[%emt 0:00:00]} 6. Nc3 {[%emt 0:00:00]} Bf5 {[%emt 0:00:00]} 7. g3 {[%emt 0:00:06]} Be7 {[%emt 0:00:06]} 8. Bg2 {[%emt 0:00:00]} O-O {[%emt 0:00:00]} 9. O-O {[%emt 0:00:00]} h6 {[%emt 0:00:10]} 10. Nd2 {[%emt 0:00:00]} Nbd7 {[%emt 0:00:12]} 11. Nc4 {[%emt 0:00:04]} a6 {[%emt 0:00:21]} 12. a4 {[%emt 0:00:00]} Nb6 {[%emt 0:00:02]} 13. Na3 {[%emt 0:00:19]} Re8 {[%emt 0:00:46]} 14. a5 {[%emt 0:00:03]} Nbd7 {[%emt 0:00:00]} 15. Nc4 {[%emt 0:00:00]} b5 {[%emt 0:00:21]} 16. axb6 {[%emt 0:00:03]} Nxb6 {[%emt 0:00:00]} 17. Nxb6 {[%emt 0:01:04]} Qxb6 {[%emt 0:00:00]} 18. e4 {[%emt 0:00:40]} Bg6 {[%emt 0:00:27]} 19. f4 {[%emt 0:03:12]} Bf8 {[%emt 0:03:34]} 20. Re1 {[%emt 0:00:20]} Bh5 {[%emt 0:01:15]} 21. Qd2 {[%emt 0:00:44]} Ng4 {[%emt 0:02:13]} 22. Kh1 {[%emt 0:01:25]} c4 {[%emt 0:00:45]} 23. Rf1 {[%emt 0:00:45]} Bg6 {[%emt 0:02:43]} 24. h3 {[%emt 0:00:26]} Nf6 {[%emt 0:00:06]} 25. Re1 {[%emt 0:00:15]} Nd7 {[%emt 0:01:23]} 26. Qe3 {[%emt 0:01:49]} Qxe3 {[%emt 0:01:32]} 27. Bxe3 {[%emt 0:00:15]} f6 {[%emt 0:01:59]} 28. Ra4 {[%emt 0:01:40]} Rec8 {[%emt 0:00:59]} 29. Bd4 {[%emt 0:01:40]} Rab8 {[%emt 0:02:01]} 30. Ne2 {[%emt 0:01:39]} Nc5 {[%emt 0:01:04]} 31. Bxc5 {[%emt 0:01:13]} Rxc5 {[%emt 0:00:02]} 32. f5 {[%emt 0:01:00]} Be8 {[%emt 0:00:26]} 33. Ra2 {[%emt 0:00:46]} Rcb5 {[%emt 0:00:18]} 34. Rb1 {[%emt 0:02:13]} a5 {[%emt 0:00:23]} 35. Bf1 {[%emt 0:00:52]} Rc5 {[%emt 0:01:37]} 36. Rc1 {[%emt 0:00:26]} a4 {[%emt 0:00:11]} 37. Nd4 {[%emt 0:00:51]} Bb5 {[%emt 0:01:49]} 38. Rc3 {[%emt 0:01:25]} Be7 {[%emt 0:00:45]} 39. Nxb5 {[%emt 0:00:37]} Rcxb5 {[%emt 0:00:00]} 40. Rc2 {[%emt 0:00:34]} Rb4 {[%emt 0:00:00]} 41. Rxc4 {[%emt 0:00:26]} Rxb2 {[%emt 0:00:00]} 42. Rxb2 {[%emt 0:00:01]} Rxb2 {[%emt 0:00:00]} 43. Rxa4 {[%emt 0:00:00]} Rb1 {[%emt 0:00:00]} 44. Kg2 {[%emt 0:00:00]} Rb2+ {[%emt 0:00:00]} 45. Kg1 {[%emt 0:00:00]} Kf7 {[%emt 0:00:00]} 46. Ra7 {[%emt 0:00:35]} Kf8 {[%emt 0:00:00]} 47. Rc7 {[%emt 0:00:10]} Bd8 {[%emt 0:00:00]} 48. Rc8 {[%emt 0:00:07]} Ke7 {[%emt 0:00:00]} 49. Rc6 {[%emt 0:00:26]} Bb6+ {[%emt 0:00:00]} 50. Kh1 {[%emt 0:00:00]} Bf2 {[%emt 0:00:00]} 51. Rc3 {[%emt 0:00:18]} Bd4 {[%emt 0:00:00]} 52. Rc7+ {[%emt 0:00:00]} Kf8 {[%emt 0:00:00]} 53. Bg2 {[%emt 0:00:32]} Rb1+ {[%emt 0:00:21]} 54. Bf1 {[%emt 0:00:10]} Rxf1+ {[%emt 0:00:00]} 55. Kg2 {[%emt 0:00:00]} Rf2+ {[%emt 0:00:00]} 56. Kh1 {[%emt 0:00:00]} Re2 {[%emt 0:00:00]} 57. Rc8+ {[%emt 0:00:02]} Kf7 {[%emt 0:00:00]} 58. Rc7+ {[%emt 0:00:00]} Kg8 {[%emt 0:00:00]} 59. Rc8+ {[%emt 0:00:00]} Kh7 {[%emt 0:00:00]} 60. Rd8 {[%emt 0:00:00]} Be5 {[%emt 0:00:00]} 61. g4 {[%emt 0:00:00]} Rxe4 {[%emt 0:00:00]} 62. Ra8 {[%emt 0:00:00]} Re2 {[%emt 0:00:00]} 63. Ra5 {[%emt 0:00:00]} Rh2+ {[%emt 0:00:00]} 64. Kg1 {[%emt 0:00:00]} Rxh3 {[%emt 0:00:00]} 0-1